bitfinex-derivatives/quotes_SOLF0:USTF0_20240926
["timestamp","ask_amount","ask_price","bid_price","bid_amount"]
[1727371825662,3.1837,157.01,156.97,3.1844]
[1727371827363,3.1835,157.02,156.98,3.1843]
[1727371828164,15.3,157.01,156.92,1.3203]
[1727371828365,15.3,157.01,156.92,16.6203]
[1727371829164,15.3,156.99,156.92,1.3203]
[1727371829359,15.3,156.99,156.92,3.1855]
[1727371829559,15.3,156.99,156.9,15.3]
[1727371829961,18.53880667,156.99,156.91,3.1855]
[1727371830163,18.53880667,156.99,156.9,15.3]
[1727371830562,3.1848,156.96,156.92,3.1854]
[1727371830964,15.3,156.97,156.88,19.143]
[1727371832163,3.1851,156.94,156.9,3.1858]
[1727371832366,15.3,156.97,156.88,19.143]
[1727371832763,3.1848,156.96,156.91,3.1856]
[1727371833465,3.1849,156.95,156.91,3.1856]
[1727371835261,3.1849,156.95,156.88,19.143]
[1727371835262,19.14,157.12,156.93,15.3]
[1727371835462,15.3,157.06,156.97,15.3]
[1727371835763,3.18236983,157.07,156.99,15.3]
[1727371835970,3.1827,157.06,157.02,3.1834]
[1727371838968,3.1825,157.07,157.03,3.1832]
[1727371839168,15.3,157.1,157.01,15.3]
[1727371839363,0.96553733,157.09,157.01,15.3]
[1727371839665,15.3,157.1,157.01,15.3]
[1727371840266,3.1824,157.08,157.01,15.3]
[1727371840871,3.1824,157.08,157.03,3.1832]
[1727371840872,11.1824,157.08,157.03,3.1832]
[1727371841068,27.14,157.08,157.0,2.5947]
[1727371841271,0.96456444,157.07,157.0,2.5947]
[1727371841469,8.0,157.08,157.0,2.5947]
[1727371841665,3.1825,157.07,157.0,2.5947]
[1727371841968,3.1825,157.07,157.04,3.1831]
[1727371842172,11.1823,157.08,157.04,3.1831]
[1727371842472,8.0,157.08,157.03,3.1832]
[1727371842673,3.1826,157.07,157.03,3.1832]
[1727371842867,8.0,157.08,157.03,3.1832]
[1727371843264,8.0,157.08,157.02,18.4834]
[1727371843768,3.1828,157.06,157.02,18.4834]
[1727371844367,3.1829,157.05,157.02,18.4834]
[1727371846672,3.1829,157.05,157.02,3.1834]
[1727371849967,8.0,157.06,157.0,3.9586]
[1727371849968,3.1836,157.02,157.0,3.9586]
[1727371850166,3.1836,157.02,156.92,3.19097255]
[1727371850167,27.14,157.06,156.92,3.19097255]
[1727371850372,27.14,157.06,156.93,19.2959]
[1727371850572,15.3,157.02,156.93,22.51720509]
[1727371851476,27.14,157.06,156.95,15.3]
[1727371851477,15.3,157.05,156.95,15.3]
[1727371851776,8.0,157.06,157.02,15.3]
[1727371851976,8.0,157.1,157.02,15.3]
[1727371852179,3.1827,157.06,157.03,3.1831]
[1727371852381,8.0,157.1,157.02,15.3]
[1727371852881,23.3,157.1,157.03,3.1832]
[1727371853771,23.3,157.1,157.02,15.3]
[1727371853979,23.3,157.1,157.02,3.1834]
[1727371854281,3.1832,157.04,157.0,15.3]
[1727371854577,3.1832,157.04,157.01,3.1835]
[1727371855073,15.3,157.06,156.98,15.3]
[1727371855777,3.1834,157.03,157.0,3.1838]
[1727371855976,34.44,157.06,156.96,15.3]
[1727371856178,15.3,157.04,156.96,15.3]
[1727371856680,3.1835,157.02,156.99,3.184]
[1727371857071,18.48555274,157.07,156.96,15.3]
[1727371857272,3.1834,157.03,156.96,15.3]
[1727371857782,3.1834,157.03,157.0,3.1838]
[1727371857971,3.1835,157.02,157.0,3.1838]
[1727371858177,15.3,157.05,156.96,15.3]
[1727371858378,15.3,157.05,156.99,3.1841]
[1727371858878,3.1836,157.02,156.99,3.1841]
[1727371860474,3.1837,157.01,156.98,3.1842]
[1727371865282,3.1837,157.01,156.99,3.184]
[1727371865483,8.0,157.05,156.98,15.3]
[1727371865686,8.0,157.05,156.99,2.6885]
[1727371865883,3.1836,157.02,156.99,2.6885]
[1727371866694,3.1837,157.01,156.99,2.6885]
[1727371867384,3.1836,157.02,156.99,5.8725]
[1727371867590,3.1836,157.02,156.99,2.6885]
[1727371867786,3.1836,157.02,157.0,3.1838]
[1727371867984,3.1833,157.03,157.0,3.1838]
[1727371868388,3.8358,157.05,157.04,3.1831]
[1727371868585,34.44,157.12,157.03,15.3]
[1727371868786,15.3,157.1,157.01,15.3]
[1727371868982,15.3,157.08,157.01,18.4835]
[1727371869187,15.3,157.08,156.99,17.9885]
[1727371869382,19.14,157.1,156.99,17.9885]
[1727371869589,15.3,157.08,157.0,3.1837]
[1727371869792,15.3,157.08,156.99,17.9885]
[1727371869991,15.3,157.06,156.99,5.8725]
[1727371870190,3.16358143,157.09,156.99,5.8725]
[1727371870494,15.3,157.06,156.99,5.8725]
[1727371870993,3.1831,157.04,156.99,5.8725]
[1727371871792,3.1833,157.03,156.99,5.8725]
[1727371873394,15.3,157.06,156.99,2.6885]
[1727371873395,3.1835,157.02,156.99,2.6885]
[1727371874791,3.1835,157.02,156.99,5.8725]
[1727371875597,3.1835,157.02,156.99,1.3132]
[1727371876700,3.1835,157.02,156.99,4.4972]
[1727371876991,15.3,157.06,156.99,1.3132]
[1727371876992,3.1837,157.01,156.99,1.3132]
[1727371879499,3.1835,157.02,156.99,1.3132]
[1727371879992,3.1835,157.02,156.99,4.4973]
[1727371881695,2.6343,157.07,156.94,2.6377]
[1727371881696,15.3,157.04,156.94,2.6377]
[1727371881995,15.3,157.04,156.95,1.2784]
[1727371883094,3.1838,157.01,156.95,1.2784]
[1727371883799,3.1838,157.01,156.97,3.1843]
[1727371884500,3.1838,157.01,156.98,3.1842]
[1727371886299,12.9738,157.01,156.98,3.1842]
[1727371886798,3.1839,157.0,156.97,12.9744]
[1727371887501,3.1841,156.99,156.96,12.9745]
[1727371887904,3.1839,157.0,156.97,3.1844]
[1727371888301,3.1839,157.0,156.98,3.1843]
[1727371888499,9.79,157.01,156.97,9.79]
[1727371889398,12.9738,157.01,156.98,3.1841]
[1727371889605,9.79,157.01,156.98,3.1841]
[1727371890908,3.1839,157.0,156.97,12.9744]
[1727371891601,12.9737,157.01,156.98,3.1843]
[1727371891807,2.6343,157.07,156.97,9.79]
[1727371891808,9.79,157.03,156.97,9.79]
[1727371892103,2.6343,157.07,156.98,9.79]
[1727371892308,9.79,157.04,156.99,9.79]
[1727371892710,3.1836,157.02,156.99,3.184]
[1727371894906,9.79,157.03,156.98,12.9742]
[1727371895310,3.1838,157.01,156.98,12.9742]
[1727371896100,3.1838,157.01,156.99,3.184]
[1727371898512,3.1838,157.01,156.98,3.1842]
[1727371898713,3.1838,157.01,156.98,12.9742]
[1727371899611,3.1838,157.01,156.99,3.184]
[1727371902305,3.1837,157.01,156.98,3.1842]
[1727371903316,2.6343,157.07,157.0,9.79]
[1727371903512,9.79,157.07,157.03,9.79]
[1727371903811,9.79,157.06,157.0,9.79]
[1727371904009,3.1832,157.04,157.01,3.1835]
[1727371904913,9.79,157.03,157.0,3.1837]
[1727371905310,3.1836,157.02,157.0,3.1837]
[1727371906110,3.1833,157.03,157.0,3.1837]
[1727371906311,3.1833,157.03,157.01,3.1836]
[1727371907216,3.14890214,157.1,157.02,9.79]
[1727371907408,9.79,157.08,157.03,9.79]
[1727371907609,2.578,157.11,157.06,9.79]
[1727371907806,2.578,157.11,157.05,9.79]
[1727371907807,3.1823,157.08,157.05,9.79]
[1727371908412,3.1823,157.08,157.05,12.9727]
[1727371909010,9.79,157.06,156.96,12.6155715]
[1727371909219,9.79,157.06,157.0,9.79]
[1727371909410,2.578,157.11,157.0,9.79]
[1727371909613,9.79,157.05,157.0,9.79]
[1727371910118,9.79,157.05,157.02,3.1834]
[1727371910619,9.79,157.06,157.0,9.79]
[1727371911409,9.79,157.06,157.02,3.1833]
[1727371912018,9.79,157.06,157.01,3.1836]
[1727371912520,3.1833,157.03,157.01,3.1836]
[1727371912721,3.1833,157.03,157.0,12.9738]
[1727371912915,3.1833,157.03,157.0,9.79]
[1727371914022,3.1833,157.03,157.01,3.1837]
[1727371914220,3.1831,157.04,157.01,9.79]
[1727371915324,3.1829,157.05,157.02,3.1833]
[1727371916320,3.1829,157.05,157.03,12.9733]
[1727371916521,3.1829,157.05,157.03,9.79]
[1727371917021,3.1829,157.05,157.02,12.9734]
[1727371918426,3.1831,157.04,157.02,12.9734]
[1727371919527,2.578,157.11,157.03,9.79]
[1727371919726,9.79,157.09,157.03,9.79]
[1727371920529,3.1826,157.07,157.04,3.183]
[1727371922325,3.1827,157.06,157.04,3.183]
[1727371923529,3.1827,157.06,157.03,12.9732]
[1727371924134,3.1827,157.06,157.04,3.183]
[1727371925026,9.79,157.09,157.05,3.1827]
[1727371925222,9.79,157.09,157.04,9.79]
[1727371925428,3.1824,157.08,157.05,3.1827]
[1727371925629,2.578,157.11,157.06,9.79]
[1727371925829,3.1822,157.09,157.06,12.9725]
[1727371926135,3.1822,157.09,157.06,9.79]
[1727371926730,3.1822,157.09,157.06,12.9726]
[1727371927140,2.6489,157.14,157.08,12.9721]
[1727371927342,12.4389,157.14,157.09,9.79]
[1727371927636,3.1816,157.12,157.09,9.79]
[1727371927836,12.4389,157.14,157.08,9.79]
[1727371928141,3.1817,157.11,157.08,9.79]
[1727371928330,9.79,157.13,157.08,12.9721]
[1727371928528,2.6489,157.14,157.08,12.9721]
[1727371928733,3.1815,157.12,157.08,12.9721]
[1727371929036,19.14,157.2,157.11,9.79]
[1727371929037,9.79,157.15,157.11,9.79]
[1727371929337,9.79,157.17,157.12,9.79]
[1727371929535,2.6295,157.19,157.15,9.79]
[1727371930129,9.79,157.19,157.14,9.79]
[1727371930433,9.79,157.2,157.15,9.79]
[1727371931438,9.79,157.19,157.15,9.79]
[1727371931639,9.79,157.16,157.12,1.2895]
[1727371931844,9.79,157.14,157.09,1.2731]
[1727371932039,9.79,157.14,157.09,11.0631]
[1727371932348,9.79,157.1,157.06,1.3116]
[1727371932545,9.79,157.08,157.06,1.3116]
[1727371932738,1.3672,157.13,157.06,1.3116]
[1727371932939,9.79,157.07,157.06,1.3116]
[1727371934548,4.54363841,157.13,157.04,3.1829]
[1727371934549,3.1821,157.09,157.04,3.1829]
[1727371934747,15.28,157.1,157.04,4.4945]
[1727371934949,15.28,157.1,157.04,1.3116]
[1727371935150,3.1824,157.08,157.04,4.4947]
[1727371935550,15.28,157.1,157.04,1.3116]
[1727371935750,3.1826,157.07,157.04,1.3116]
[1727371937447,3.1826,157.07,157.04,4.4946]
[1727371938150,15.28,157.07,156.92,82.771]
[1727371938451,15.28,157.07,156.96,16.5706]
[1727371939049,15.28,157.05,156.96,16.5706]
[1727371939250,15.28,157.05,156.96,1.2906]
[1727371940858,3.14845338,157.08,156.97,15.28]
[1727371941057,20.5072,157.13,156.97,15.28]
[1727371941058,15.28,157.07,156.97,15.28]
[1727371941356,3.1834,157.03,156.99,3.1839]
[1727371941745,15.28,157.07,156.99,3.1839]
[1727371942051,3.11864873,157.08,156.99,3.1839]
[1727371942052,3.1835,157.02,156.99,3.1839]
[1727371943857,15.28,157.05,156.99,3.1839]
[1727371944056,3.15176825,157.08,156.96,1.2906]
[1727371944057,37.57176825,157.08,156.96,1.2906]
[1727371944256,15.28,157.02,156.94,2.6272]
[1727371944855,15.28,157.02,156.96,3.1845]
[1727371945054,3.1842,156.99,156.96,3.1845]
[1727371945358,15.28,157.02,156.94,2.6272]
[1727371945760,3.1842,156.99,156.96,3.1847]
[1727371946459,15.28,157.02,156.95,3.1848]
[1727371948871,15.28,157.02,156.94,5.8122]
[1727371949064,15.28,157.02,156.94,1.295]
[1727371949258,3.1846,156.97,156.94,4.4801]
[1727371949458,15.28,156.99,156.94,1.295]
[1727371949861,3.1847,156.96,156.94,1.295]
[1727371950068,3.1847,156.96,156.93,3.1852]
[1727371950660,97.37567277,157.06,156.91,4.46546418]
[1727371950661,15.28,156.98,156.91,4.46546418]
[1727371951468,3.1847,156.96,156.92,3.1853]
[1727371952768,15.28,156.98,156.92,3.1854]
[1727371952971,15.28,156.96,156.91,1.3475]
[1727371953769,15.28,156.96,156.89,1.2927]
[1727371953973,15.28,156.96,156.88,3.1862]
[1727371954270,15.28,156.96,156.87,4.53084525]
[1727371954471,12.9855,156.92,156.88,9.8]
[1727371954671,9.8,156.91,156.87,1.3028]
[1727371955271,3.1861,156.9,156.87,1.3028]
[1727371955875,3.1862,156.89,156.87,1.3028]
[1727371956071,9.8,156.89,156.84,14.28125347]
[1727371956271,9.8,156.89,156.84,1.3233]
[1727371956480,12.9867,156.87,156.83,2.6511]
[1727371956778,3.1867,156.87,156.83,2.6511]
[1727371957170,3.1868,156.86,156.83,1.3028]
[1727371957371,15.3,156.89,156.83,1.3028]
[1727371957575,15.3,156.89,156.83,4.4901]
[1727371958475,15.3,156.89,156.84,3.1871]
[1727371959870,18.4861,156.89,156.84,3.1871]
[1727371960274,3.1861,156.89,156.84,3.1871]
[1727371960582,18.4861,156.89,156.84,3.1871]
[1727371961772,3.1865,156.87,156.83,1.3028]
[1727371961978,15.3,156.87,156.82,3.1874]
[1727371962179,2.5404,156.91,156.78,1.3777]
[1727371962180,15.3,156.85,156.78,1.3777]
[1727371962480,15.3,156.85,156.81,3.1876]
[1727371963283,15.3,156.85,156.8,3.1879]
[1727371963477,2.5404,156.91,156.8,3.1879]
[1727371963677,15.3,156.83,156.77,2.6171]
[1727371963878,15.3,156.83,156.79,3.188]
[1727371964074,15.3,156.81,156.77,1.3007]
[1727371964779,15.3,156.81,156.78,3.1883]
[1727371965676,18.4877,156.81,156.77,3.1885]
[1727371965881,15.3,156.81,156.74,3.22106761]
[1727371966481,15.3,156.81,156.78,3.1883]
[1727371966879,3.1877,156.82,156.78,3.1883]
[1727371967177,15.3,156.81,156.78,3.1883]
[1727371967782,18.4878,156.81,156.78,3.1883]
[1727371969980,15.3,156.79,156.72,61.63949534]
[1727371970374,15.3,156.75,156.66,16.644]
[1727371970574,15.3,156.75,156.67,1.3679]
[1727371970777,15.3,156.75,156.67,4.61242845]
[1727371970982,15.3,156.75,156.67,1.3679]
[1727371971182,18.4886,156.77,156.67,1.3679]
[1727371971582,18.4886,156.77,156.73,3.1892]
[1727371972581,3.1888,156.76,156.73,3.1892]
[1727371972787,15.3,156.8,156.73,3.1892]
[1727371972788,15.3,156.75,156.73,3.1892]
[1727371973087,2.5732,156.83,156.73,3.1892]
[1727371973290,15.3,156.76,156.73,3.1892]
[1727371975391,15.3,156.76,156.74,3.1891]
[1727371975591,15.3,156.76,156.69,3.16161343]
[1727371975791,15.3,156.76,156.67,1.3679]
[1727371975991,15.3,156.76,156.74,3.1891]
[1727371976995,18.4888,156.76,156.73,3.1893]
[1727371978196,15.3,156.74,156.63,15.3]
[1727371978397,9.8,156.7,156.65,9.8]
[1727371978594,9.8,156.7,156.69,3.19]
[1727371978993,9.8,156.71,156.66,9.8]
[1727371979196,9.8,156.71,156.7,3.1898]
[1727371980198,3.1895,156.73,156.7,3.1898]
[1727371980494,9.8,156.71,156.69,3.1901]
[1727371981794,9.8,156.71,156.7,3.19]
[1727371982499,9.8,156.71,156.69,3.1901]
[1727371983000,9.8,156.72,156.7,3.19]
[1727371983297,9.8,156.71,156.65,1.3769]
[1727371983498,9.8,156.68,156.65,1.3769]
[1727371983895,9.8,156.68,156.6,9.52028267]
[1727371984089,9.8,156.68,156.62,9.8]
[1727371984497,9.8,156.68,156.61,2.5811]
[1727371984696,9.8,156.68,156.62,9.8]
[1727371984999,9.8,156.68,156.67,3.1906]
[1727371985397,9.8,156.68,156.61,2.5811]
[1727371985593,9.8,156.66,156.65,3.1908]
[1727371985799,1.6357,156.77,156.65,3.1908]
[1727371986103,9.8,156.66,156.65,3.1908]
[1727371986597,9.8,156.67,156.66,3.1906]
[1727371987598,1.6357,156.77,156.64,9.8]
[1727371987799,9.8,156.7,156.64,9.8]
[1727371988598,0.8,156.7,156.69,3.19]
[1727371988793,1.6357,156.77,156.67,9.8]
[1727371988997,9.8,156.72,156.68,1.2702]
[1727371989193,9.8,156.72,156.71,3.1896]
[1727371989803,0.655,156.87,156.75,3.1889]
[1727371990003,9.8,156.77,156.75,3.1889]
[1727371990198,9.8,156.76,156.71,3.1897]
[1727371990405,9.8,156.72,156.71,3.1897]
[1727371991102,9.8,156.74,156.69,12.5575]
[1727371991298,9.8,156.74,156.72,3.1894]
[1727371991503,9.8,156.74,156.69,12.5575]
[1727371991701,9.8,156.75,156.7,9.8]
[1727371992007,3.1886,156.77,156.7,9.8]
[1727371992209,9.8,156.76,156.7,9.8]
[1727371993805,9.8,156.76,156.73,3.1892]
[1727371994005,9.8,156.76,156.7,9.8]
[1727371994511,9.8,156.77,156.72,9.8]
[1727371995608,9.8,156.76,156.72,9.8]
[1727371996612,9.8,156.76,156.74,3.189]
[1727371997009,9.8,156.76,156.7,9.8]
[1727371997513,9.8,156.76,156.72,9.8]
[1727371997902,9.8,156.76,156.73,3.1892]
[1727371998503,9.8,156.76,156.74,3.1891]
[1727371998709,9.8,156.75,156.69,2.7575]
[1727371998905,9.8,156.71,156.69,2.7575]
[1727371999210,9.8,156.71,156.69,4.5747]
[1727371999410,9.8,156.7,156.65,3.14328136]
[1727371999607,9.8,156.7,156.65,12.94328136]
[1727371999816,1.6394,156.77,156.66,9.8]
[1727372000113,9.8,156.71,156.66,9.8]
[1727372000312,9.8,156.71,156.69,3.19]
[1727372000615,9.8,156.71,156.66,9.8]
[1727372001114,9.8,156.71,156.68,3.1902]
[1727372001613,9.8,156.7,156.65,9.8]
[1727372001815,9.8,156.69,156.64,9.8]
[1727372002016,9.8,156.68,156.64,9.8]
[1727372002313,9.8,156.69,156.64,9.8]
[1727372002709,3.1896,156.72,156.65,9.8]
[1727372002912,9.8,156.71,156.65,9.8]
[1727372003114,9.8,156.71,156.67,9.8]
[1727372004809,3.1893,156.74,156.67,9.8]
[1727372004810,9.8,156.72,156.67,9.8]
[1727372005411,9.8,156.72,156.68,9.8]
[1727372005715,9.8,156.72,156.69,3.19]
[1727372006211,9.8,156.71,156.69,3.19]
[1727372006715,9.8,156.73,156.69,3.19]
[1727372007313,12.9894,156.73,156.69,3.19]
[1727372009813,12.9894,156.73,156.7,3.19]
[1727372012228,12.9892,156.74,156.7,3.19]
[1727372012618,12.9892,156.74,156.71,3.1897]
[1727372014417,3.1894,156.73,156.7,3.1899]
[1727372020122,9.8,156.71,156.63,7.08965643]
[1727372020314,9.8,156.7,156.65,9.8]
[1727372020916,3.1903,156.69,156.65,9.8]
[1727372021316,9.8,156.69,156.65,9.8]
[1727372021516,9.8,156.69,156.65,12.9909]
[1727372021517,3.1904,156.68,156.65,12.9909]
[1727372022315,3.1904,156.68,156.66,3.1908]
[1727372023224,3.1904,156.68,156.65,12.9909]
[1727372024522,12.9904,156.68,156.65,3.1909]
[1727372024718,3.1906,156.67,156.64,3.1912]
[1727372025022,9.8,156.68,156.63,3.9658]
[1727372025422,3.1909,156.66,156.63,4.4823]
[1727372025621,12.9909,156.66,156.63,3.1914]
[1727372026224,9.8,156.66,156.61,9.8]
[1727372026628,3.1907,156.67,156.63,9.8]
[1727372026831,3.1907,156.67,156.64,3.1912]
[1727372029027,12.9904,156.68,156.63,9.8]
[1727372029227,3.1904,156.68,156.64,9.8]
[1727372029423,9.8,156.69,156.56,12.59859821]
[1727372029631,12.9906,156.67,156.64,3.1911]
[1727372029832,9.8,156.67,156.56,6.3855]
[1727372030032,9.8,156.67,156.61,9.8]
[1727372030233,9.8,156.67,156.63,3.1912]
[1727372030234,3.1909,156.66,156.63,3.1912]
[1727372030529,9.8,156.68,156.61,9.8]
[1727372030936,3.1907,156.67,156.64,3.191]
[1727372032039,12.9909,156.66,156.63,3.1912]
[1727372032237,9.8,156.66,156.63,3.1912]
[1727372033534,3.191,156.65,156.63,3.1912]
[1727372034130,19.14,156.73,156.63,9.8]
[1727372034338,9.8,156.68,156.63,9.8]
[1727372034533,3.1907,156.67,156.64,3.1911]
[1727372035134,12.9907,156.67,156.64,3.1911]
[1727372035335,3.1908,156.66,156.64,3.1911]
[1727372037238,12.9907,156.67,156.64,3.1911]
[1727372037943,9.8,156.67,156.62,9.8]
[1727372038143,9.8,156.67,156.57,6.23312269]
[1727372038344,9.8,156.67,156.62,9.8]
[1727372038546,12.9907,156.67,156.64,3.1911]
[1727372039445,3.1908,156.66,156.64,3.1911]
[1727372039645,9.8,156.66,156.63,3.1913]
[1727372039944,9.8,156.64,156.57,6.234682]
[1727372040142,9.8,156.62,156.6,3.1918]
[1727372040345,9.8,156.62,156.57,9.8]
[1727372041044,9.8,156.62,156.61,3.1918]
[1727372041441,25.5388,156.73,156.59,9.8]
[1727372041748,9.8,156.64,156.59,9.8]
[1727372041935,22.32101334,156.7,156.6,9.8]
[1727372042139,12.991,156.65,156.62,3.1915]
[1727372042544,9.8,156.65,156.63,3.1913]
[1727372042839,19.16,156.76,156.64,9.8]
[1727372043040,9.8,156.7,156.65,9.8]
[1727372043345,12.9901,156.7,156.65,9.8]
[1727372043549,9.8,156.7,156.65,9.8]
[1727372044352,9.8,156.7,156.65,11.1115]
[1727372045349,9.8,156.7,156.67,3.1904]
[1727372045350,12.9901,156.7,156.67,3.1904]
[1727372046046,1.6356,156.77,156.65,11.1115]
[1727372046247,9.8,156.71,156.67,9.8]
[1727372046651,12.9898,156.71,156.68,3.1903]
[1727372047855,9.8,156.69,156.65,4.0717]
[1727372048155,19.16,156.75,156.61,9.8]
[1727372048365,9.8,156.67,156.63,9.8]
[1727372049456,9.8,156.67,156.65,3.1909]
[1727372050047,9.8,156.66,156.6,11.1102]
[1727372050261,19.16,156.75,156.64,9.8]
[1727372050453,9.8,156.69,156.64,9.8]
[1727372050855,3.1904,156.68,156.64,9.8]
[1727372051456,12.9908,156.67,156.62,12.98211129]
[1727372051657,12.9908,156.67,156.62,9.8]
[1727372051956,19.16,156.75,156.61,9.8]
[1727372051957,9.8,156.66,156.61,9.8]
[1727372052151,12.9909,156.66,156.61,9.8]
[1727372052752,9.8,156.64,156.62,3.1915]
[1727372053246,9.8,156.63,156.61,3.1917]
[1727372053461,9.8,156.63,156.59,1.2977]
[1727372053651,9.8,156.66,156.61,9.8]
[1727372053847,12.9908,156.66,156.62,3.1914]
[1727372055055,9.8,156.63,156.61,3.1918]
[1727372055258,9.8,156.64,156.61,3.1918]
[1727372056157,9.8,156.64,156.62,3.1916]
[1727372057252,9.8,156.63,156.59,1.2977]
[1727372057460,3.14796025,156.7,156.59,1.2977]
[1727372057461,9.8,156.62,156.59,1.2977]
[1727372057657,9.8,156.63,156.59,1.2977]
[1727372057855,12.9915,156.63,156.59,4.4898]
[1727372059458,1.6339,156.69,156.58,3.1923]
[1727372059658,9.8,156.61,156.58,3.1923]
[1727372060259,1.6339,156.69,156.58,9.8]
[1727372060475,3.1914,156.63,156.55,1.3534]
[1727372060655,3.1914,156.63,156.58,9.8]
[1727372061265,9.8,156.62,156.6,3.1919]
[1727372061466,9.8,156.62,156.54,4.53204717]
[1727372061761,1.6339,156.69,156.59,3.1921]
[1727372061969,9.8,156.62,156.59,3.1921]
[1727372062267,9.8,156.62,156.58,3.1922]
[1727372062765,3.1919,156.61,156.58,3.1922]
[1727372064661,12.9917,156.62,156.59,3.1922]
[1727372064867,9.8,156.63,156.57,9.8]
[1727372065270,12.9915,156.63,156.6,3.1919]
[1727372065567,9.8,156.63,156.57,9.8]
[1727372065772,9.8,156.64,156.58,9.8]
[1727372065971,9.8,156.66,156.61,9.8]
[1727372066167,3.191,156.65,156.63,3.1914]
[1727372066364,3.191,156.65,156.61,9.8]
[1727372066669,19.16,156.75,156.61,9.8]
[1727372066870,12.9908,156.66,156.61,9.8]
[1727372067765,12.9908,156.66,156.63,3.1912]
[1727372068667,12.9908,156.66,156.54,4.53204717]
[1727372068668,9.8,156.65,156.6,9.8]
[1727372069262,9.8,156.64,156.61,3.1917]
[1727372069470,9.8,156.62,156.58,9.8]
[1727372069968,9.8,156.62,156.61,3.1918]
[1727372070470,9.8,156.64,156.61,3.1918]
[1727372070665,3.1914,156.63,156.6,3.1919]
[1727372070871,3.1914,156.63,156.55,6.23060912]
[1727372071070,9.8,156.64,156.54,4.53204717]
[1727372071071,9.8,156.64,156.58,9.8]
[1727372071262,12.9918,156.62,156.6,3.1919]
[1727372071467,9.8,156.63,156.6,3.1919]
[1727372071663,12.9915,156.63,156.6,3.1919]
[1727372072274,9.8,156.63,156.58,9.8]
[1727372072468,9.8,156.63,156.59,9.8]
[1727372073374,9.8,156.63,156.54,10.76265629]
[1727372073375,12.9915,156.63,156.6,3.1919]
[1727372073676,3.1917,156.62,156.59,3.1921]
[1727372074471,3.1918,156.61,156.59,3.1921]
[1727372074877,9.8,156.62,156.59,3.1921]
[1727372075272,9.8,156.6,156.54,1.2865]
[1727372075475,0.9827,156.68,156.54,1.2865]
[1727372075476,0.6516,156.67,156.54,1.2865]
[1727372075671,3.1918,156.61,156.54,11.0865]
[1727372075872,9.8,156.6,156.57,3.1924]
[1727372076169,9.8,156.59,156.5,6.23176834]
[1727372076365,0.6516,156.67,156.5,2.6385]
[1727372076366,15.34,156.58,156.5,2.6385]
[1727372076572,15.34,156.58,156.51,3.1567085]
[1727372076772,18.5326,156.58,156.51,3.1567085]